bitfinex-derivatives/quotes_BTCF0:USTF0_20251118
["timestamp","ask_amount","ask_price","bid_price","bid_amount"]
[1763499681080,0.1078889,92737.0,92730.0,0.05947007]
[1763499681275,0.3608,92738.0,92730.0,0.05947007]
[1763499681481,0.1078941,92732.0,92730.0,0.05947007]
[1763499681775,0.3608,92738.0,92737.0,0.04259]
[1763499683374,0.37586,92738.0,92737.0,0.04259]
[1763499683579,0.37586,92738.0,92737.0,0.150478]
[1763499683580,0.3618,92738.0,92737.0,0.150478]
[1763499683984,0.3618,92738.0,92737.0,0.04259]
[1763499684696,0.3618,92738.0,92737.0,0.150478]
[1763499684986,0.38992,92738.0,92737.0,0.04259]
[1763499685184,0.3618,92738.0,92737.0,0.04259]
[1763499692286,0.37586,92738.0,92737.0,0.04259]
[1763499694692,0.02812,92731.0,92730.0,0.05714]
[1763499694904,0.02812,92731.0,92730.0,0.05914007]
[1763499697086,0.3608,92738.0,92737.0,0.151868]
[1763499697991,0.26084,92749.0,92746.0,0.1518575]
[1763499698186,0.468674,92750.0,92746.0,0.1518575]
[1763499698187,0.36173063,92750.0,92746.0,0.1518575]
[1763499698497,0.02812,92765.0,92764.0,0.1518357]
[1763499698793,0.02318283,92765.0,92764.0,0.1518357]
[1763499698985,0.3608,92767.0,92766.0,0.04398]
[1763499699386,0.38399007,92767.0,92766.0,0.04398]
[1763499699793,0.3608,92767.0,92766.0,0.04398]
[1763499700093,0.3628,92767.0,92766.0,0.04398]
[1763499700690,0.39092,92767.0,92766.0,0.04398]
[1763499701289,0.3628,92767.0,92766.0,0.1518342]
[1763499701490,0.3638,92767.0,92766.0,0.1518342]
[1763499702587,0.3628,92767.0,92766.0,0.1518342]
[1763499702783,0.002,92767.0,92766.0,0.1518342]
[1763499703088,0.002,92767.0,92762.0,0.3608]
[1763499703089,0.00016172,92776.0,92775.0,0.1518238]
[1763499705696,0.00116172,92776.0,92775.0,0.18305036]
[1763499706287,0.3608,92796.0,92790.0,0.1078262]
[1763499706487,0.39292,92796.0,92795.0,0.04398]
[1763499706688,0.3608,92796.0,92795.0,0.07520656]
[1763499707190,0.00093063,92800.0,92799.0,0.1517959]
[1763499707499,0.01699063,92800.0,92799.0,0.18302246]
[1763499707890,0.03305063,92800.0,92799.0,0.07520656]
[1763499708491,0.00093063,92800.0,92799.0,0.07520656]
[1763499709398,0.39318938,92806.0,92805.0,0.02239]
[1763499709595,0.39318938,92806.0,92805.0,0.05361656]
[1763499710395,0.39318938,92806.0,92805.0,0.07520656]
[1763499710600,0.36106938,92806.0,92805.0,0.07520656]
[1763499711100,0.37712938,92806.0,92805.0,0.07520656]
[1763499711289,0.39318938,92806.0,92805.0,0.07520656]
[1763499711494,0.39418938,92806.0,92805.0,0.07520656]
[1763499711800,0.39618938,92806.0,92805.0,0.07520656]
[1763499711995,0.39618938,92806.0,92805.0,0.05361656]
[1763499713407,0.39618938,92806.0,92805.0,0.08250415]
[1763499713908,0.39618938,92806.0,92805.0,0.08250409]
[1763499714099,0.39618938,92806.0,92805.0,0.05361656]
[1763499714406,0.39618938,92806.0,92805.0,0.06011406]
[1763499714607,0.39618938,92806.0,92805.0,0.03122656]
[1763499716611,0.36406938,92806.0,92805.0,0.07520656]
[1763499717102,0.00326938,92806.0,92805.0,0.07520656]
[1763499717295,0.3608,92824.0,92823.0,0.151968]
[1763499717500,0.3608,92824.0,92823.0,0.18319456]
[1763499717696,0.39324,92840.0,92839.0,0.1519494]
[1763499717898,0.39417063,92840.0,92839.0,0.03122656]
[1763499718405,0.39417063,92840.0,92839.0,0.03043395]
[1763499718707,0.03244,92832.0,92831.0,0.04418]
[1763499718909,0.39324,92832.0,92831.0,0.07461415]
[1763499719697,0.39324,92832.0,92831.0,0.03043415]
[1763499720200,0.39524,92832.0,92831.0,0.07461415]
[1763499720401,0.3628,92832.0,92831.0,0.18239285]
[1763499720602,0.39524,92832.0,92831.0,0.03043415]
[1763499721197,0.00093063,92830.0,92821.0,0.02886589]
[1763499721398,0.3608,92822.0,92813.0,0.02884603]
[1763499721600,0.3608,92814.0,92802.0,0.08266785]
[1763499721799,0.3608,92803.0,92802.0,0.08266785]
[1763499722004,0.3608,92803.0,92802.0,0.04418]
[1763499723096,0.3608,92803.0,92802.0,0.08266785]
[1763499723409,0.3608,92803.0,92802.0,0.04418]
[1763499723617,0.3608,92803.0,92802.0,0.08266572]
[1763499723801,0.3608,92803.0,92802.0,0.04418]
[1763499725598,0.00016163,92812.0,92811.0,0.1519819]
[1763499727009,0.00116163,92812.0,92811.0,0.1519819]
[1763499727907,0.00116163,92812.0,92811.0,0.04418]
[1763499728705,0.00116163,92812.0,92811.0,0.1519819]
[1763499729112,0.00116163,92812.0,92811.0,0.04418]
[1763499729910,0.00116163,92812.0,92810.0,0.05991368]
[1763499730210,0.00116163,92812.0,92811.0,0.04418]
[1763499730416,0.00116163,92812.0,92811.0,0.10209361]
[1763499730605,0.00116163,92812.0,92811.0,0.04418]
[1763499731002,0.00116163,92812.0,92811.0,0.151982]
[1763499731201,0.00116163,92812.0,92811.0,0.20989561]
[1763499731406,0.00116163,92812.0,92811.0,0.151982]
[1763499732515,0.00116163,92812.0,92811.0,0.04418]
[1763499733105,0.00116163,92812.0,92811.0,0.0736876]
[1763499734417,0.00116163,92812.0,92811.0,0.15066925]
[1763499735009,0.00116163,92812.0,92811.0,0.0736876]
[1763499735311,0.00116163,92812.0,92811.0,0.15066925]
[1763499735516,0.00116163,92812.0,92811.0,0.0736876]
[1763499736213,0.3608,92841.0,92840.0,0.1652183]
[1763499736414,0.3608,92841.0,92840.0,0.19672597]
[1763499736618,0.3608,92841.0,92840.0,0.08895767]
[1763499737204,0.3608,92841.0,92840.0,0.14699366]
[1763499737405,0.00016163,92850.0,92849.0,0.04418]
[1763499737611,0.3608,92860.0,92859.0,0.1519262]
[1763499737806,0.3608,92860.0,92859.0,0.1814338]
[1763499738109,0.00093063,92870.0,92868.0,0.1077354]
[1763499738311,0.3608,92873.0,92868.0,0.1077354]
[1763499738312,0.3608,92873.0,92872.0,0.04418]
[1763499738516,0.3608,92873.0,92872.0,0.0736876]
[1763499738813,0.3608,92873.0,92872.0,0.13169419]
[1763499739008,0.3608,92873.0,92872.0,0.0736876]
[1763499739410,0.3608,92873.0,92872.0,0.11227708]
[1763499739611,0.3628,92873.0,92872.0,0.11227708]
[1763499739912,0.3628,92873.0,92872.0,0.06809708]
[1763499740114,0.3628,92873.0,92872.0,0.0295076]
[1763499740813,0.3638,92873.0,92872.0,0.0526776]
[1763499741420,0.3638,92873.0,92872.0,0.0736876]
[1763499741823,0.003,92873.0,92872.0,0.0736876]
[1763499742819,0.36096153,92882.0,92881.0,0.1532407]
[1763499743020,0.36096153,92882.0,92881.0,0.3355076]
[1763499744016,0.36296153,92882.0,92881.0,0.0750276]
[1763499744522,0.36396153,92882.0,92881.0,0.1827483]
[1763499744717,0.36396153,92882.0,92881.0,0.0750276]
[1763499745616,0.00316153,92882.0,92881.0,0.0750276]
[1763499746416,0.3608,92898.0,92885.0,0.1532361]
[1763499746626,0.3608,92898.0,92885.0,0.1827437]
[1763499747413,0.00010687,92895.0,92885.0,0.1827437]
[1763499747609,0.00010687,92895.0,92885.0,0.0750276]
[1763499747819,0.36173063,92890.0,92885.0,0.0750276]
[1763499750926,0.3608,92890.0,92889.0,0.1521114]
[1763499751117,0.00010687,92895.0,92894.0,0.1518156]
[1763499751312,0.00010687,92895.0,92894.0,0.4121356]
[1763499751517,0.00010687,92895.0,92894.0,0.30443]
[1763499751518,0.04493687,92895.0,92894.0,0.30443]
[1763499752024,0.02166687,92895.0,92894.0,0.30443]
[1763499752624,0.02266687,92895.0,92894.0,0.30443]
[1763499753222,0.00110687,92895.0,92894.0,0.30443]
[1763499753427,0.00110687,92895.0,92894.0,0.33276064]
[1763499753627,0.3608,92907.0,92906.0,0.1651617]
[1763499754226,0.3608,92907.0,92906.0,0.05747]
[1763499754727,0.40563,92907.0,92906.0,0.05747]
[1763499754930,0.04483,92897.0,92896.0,0.40491]
[1763499755114,0.3608,92907.0,92890.0,0.31775]
[1763499755115,0.04483,92891.0,92890.0,0.31775]
[1763499755319,0.3608,92908.0,92899.0,0.107699]
[1763499755519,0.36173063,92900.0,92899.0,0.04411]
[1763499756411,0.36173063,92900.0,92886.0,0.3608]
[1763499756620,0.36173063,92900.0,92887.0,0.02832926]
[1763499756621,0.3608,92890.0,92887.0,0.02832926]
[1763499756827,0.04483,92889.0,92888.0,0.02832926]
[1763499757020,0.3608,92890.0,92885.0,0.00016153]
[1763499757021,0.04483,92886.0,92885.0,0.00016153]
[1763499757918,0.04483,92886.0,92880.0,0.00200007]
[1763499757919,0.04483,92869.0,92868.0,0.04411]
[1763499758118,0.04483,92869.0,92868.0,0.18018598]
[1763499758328,0.00093063,92870.0,92869.0,0.04411]
[1763499758525,0.3608,92881.0,92873.0,0.01336]
[1763499758729,0.40563,92881.0,92880.0,0.02417007]
[1763499759724,0.40563,92881.0,92880.0,0.04611007]
[1763499760229,0.40563,92881.0,92880.0,0.0744863]
[1763499761323,0.40563,92881.0,92880.0,0.0525463]
[1763499763032,0.40563,92881.0,92880.0,0.0303763]
[1763499764630,0.40563,92881.0,92880.0,0.0878463]
[1763499765719,0.3608,92881.0,92880.0,0.0878463]
[1763499766335,0.38236,92881.0,92880.0,0.12635297]
[1763499767023,0.40563,92881.0,92880.0,0.12635297]
[1763499767228,0.40563,92881.0,92880.0,0.0878463]
[1763499768627,0.04483,92881.0,92880.0,0.0878463]
[1763499768827,0.04483,92881.0,92880.0,0.14585289]
[1763499769027,0.04483,92881.0,92880.0,0.0878463]
[1763499769332,0.04483,92881.0,92880.0,0.14589315]
[1763499769528,0.38236,92888.0,92887.0,0.04411]
[1763499769834,0.3608,92888.0,92887.0,0.07248623]
[1763499770024,0.3608,92888.0,92887.0,0.13053147]
[1763499771638,0.01387,92910.0,92890.0,0.00200007]
[1763499771942,0.01387,92910.0,92909.0,0.3608]
[1763499771943,0.00319401,92910.0,92909.0,0.3608]
[1763499772145,0.04895464,92910.0,92909.0,0.72711131]
[1763499772438,0.04895464,92910.0,92909.0,0.64977623]
[1763499773041,0.04895464,92910.0,92909.0,0.38917623]
[1763499773840,0.00319401,92910.0,92909.0,0.38917623]
[1763499774032,0.0587,92920.0,92919.0,0.1076766]
[1763499774228,0.01387,92920.0,92919.0,0.7290366]
[1763499774431,0.01387,92920.0,92919.0,0.80632234]
[1763499774638,0.00981,92930.0,92925.0,0.1076697]
[1763499774836,0.00981,92940.0,92939.0,0.1076535]
[1763499775141,0.05464,92940.0,92939.0,0.52630038]
[1763499775341,0.05464,92940.0,92939.0,0.4684535]
[1763499775544,0.00981,92940.0,92939.0,0.4684535]
[1763499775744,0.0063445,92940.0,92939.0,0.4684535]
[1763499776341,0.0511745,92940.0,92939.0,0.4684535]
[1763499776648,0.05210513,92940.0,92939.0,0.62136]
[1763499776847,0.05210513,92940.0,92939.0,0.3608]
[1763499777137,0.05210513,92940.0,92939.0,0.62136]
[1763499777343,0.05310513,92940.0,92939.0,0.62136]
[1763499777541,0.05310513,92940.0,92939.0,0.65981707]
[1763499777928,0.05310513,92940.0,92939.0,0.62132]
[1763499779240,0.05310513,92940.0,92939.0,0.3608]
[1763499780134,0.05310513,92940.0,92939.0,0.38852201]
[1763499780747,0.05310513,92940.0,92922.0,0.03847311]
[1763499780748,0.0449,92931.0,92922.0,0.03847311]
[1763499781039,0.0449,92922.0,92921.0,0.3608]
[1763499781946,0.0449,92922.0,92921.0,0.38963986]
[1763499782336,0.0449,92922.0,92921.0,0.3608]
[1763499785438,0.0583,92928.0,92927.0,0.1076674]
[1763499785941,0.0134,92928.0,92921.0,0.3608]
[1763499786144,0.0449,92922.0,92921.0,0.3608]
[1763499787838,0.0449,92922.0,92921.0,0.4684743]
[1763499788643,0.0449,92922.0,92921.0,0.3608]
[1763499791552,0.0449,92922.0,92921.0,0.38962567]
[1763499792051,0.0134,92928.0,92927.0,0.1076674]
[1763499792237,0.0134,92928.0,92921.0,0.49729997]
[1763499792238,0.0134,92928.0,92925.0,0.1076692]
[1763499792442,0.0583,92928.0,92925.0,0.1076692]
[1763499792647,0.0583,92928.0,92927.0,0.1076674]
[1763499792950,0.0583,92928.0,92927.0,0.13538309]
[1763499794349,0.0583,92928.0,92927.0,0.16420876]
[1763499795451,0.0583,92928.0,92927.0,0.13538309]
[1763499795946,0.0583,92928.0,92927.0,0.1076674]
[1763499797150,0.03244847,92928.0,92927.0,0.1076674]
[1763499800454,0.03244847,92928.0,92927.0,0.16545526]
[1763499801152,0.03244847,92928.0,92927.0,0.1076674]
[1763499801654,0.05888,92925.0,92924.0,0.1076704]
[1763499802448,0.05888,92925.0,92922.0,0.3679909]
[1763499802644,0.05888,92925.0,92924.0,0.1076709]
[1763499803644,0.04633,92923.0,92922.0,0.26032]
[1763499803849,0.04633,92921.0,92920.0,0.00200007]
[1763499804154,0.04633,92913.0,92911.0,0.18497144]
[1763499804355,0.04633,92913.0,92911.0,0.1076857]
[1763499804556,0.04633,92913.0,92910.0,0.10968697]
[1763499804849,0.04633,92904.0,92902.0,0.3608]
[1763499805055,0.04633,92903.0,92902.0,0.3608]
[1763499805252,0.02047121,92903.0,92902.0,0.3608]
[1763499805445,0.04376121,92903.0,92902.0,0.3608]
[1763499805645,0.04376121,92903.0,92902.0,0.4684964]
[1763499805855,0.04376121,92903.0,92902.0,0.4915364]
[1763499806063,0.04376121,92903.0,92902.0,0.4800164]
[1763499806246,0.04376121,92903.0,92902.0,0.53804785]
[1763499806447,0.04276121,92903.0,92902.0,0.4810164]
[1763499806741,0.04276121,92903.0,92902.0,0.3618]
[1763499806942,0.04276121,92903.0,92902.0,0.3628]
[1763499810248,0.04276121,92903.0,92902.0,0.38784]
[1763499811754,0.04328,92903.0,92902.0,0.04065787]
[1763499812049,0.01275,92907.0,92893.0,0.00016144]
[1763499812050,0.04328,92896.0,92895.0,0.02899559]
[1763499812251,0.04328,92896.0,92893.0,0.00016144]
[1763499812252,0.04328,92894.0,92893.0,0.02915703]
[1763499812454,0.04328,92894.0,92893.0,0.00016144]
[1763499813147,0.04228,92894.0,92893.0,0.00016144]
[1763499813655,0.04128,92894.0,92893.0,0.00016144]
[1763499814347,0.04228,92894.0,92893.0,0.00016144]
[1763499815145,0.04228,92894.0,92893.0,0.15311824]
[1763499815146,0.04328,92894.0,92893.0,0.15311824]
[1763499815350,0.04328,92894.0,92893.0,0.04541144]
[1763499815550,0.04328,92894.0,92893.0,0.00016144]
[1763499816145,0.04228,92894.0,92893.0,0.00016144]
[1763499816350,0.04128,92894.0,92893.0,0.00016144]
[1763499816546,0.04228,92894.0,92893.0,0.00016144]
[1763499817454,0.04328,92884.0,92883.0,0.02899559]
[1763499817654,0.05811063,92880.0,92879.0,0.41204559]
[1763499817957,0.04421063,92880.0,92879.0,0.40605]
[1763499818462,0.04421063,92880.0,92879.0,0.43498279]
[1763499818958,0.00093063,92880.0,92879.0,0.40605]
[1763499819354,0.00016144,92889.0,92888.0,0.04525]
[1763499819660,0.00016144,92889.0,92888.0,0.5137626]
[1763499820359,0.05734144,92889.0,92888.0,0.40605]
[1763499820950,0.05734144,92889.0,92888.0,0.04525]
[1763499822854,0.00016144,92889.0,92888.0,0.40605]
[1763499823355,0.2602,92913.0,92890.0,0.00200007]
[1763499823557,0.04328,92913.0,92912.0,0.5137348]
[1763499825761,0.04328,92921.0,92920.0,0.1529245]
[1763499825962,0.04328,92921.0,92920.0,0.15492457]
[1763499826548,0.02135,92921.0,92920.0,0.04725007]
[1763499826753,0.04344144,92922.0,92921.0,0.04525]
[1763499828058,0.04444144,92922.0,92921.0,0.04525]
[1763499828964,0.04544144,92922.0,92921.0,0.04525]
[1763499830065,0.04544144,92922.0,92920.0,0.00200007]
[1763499830066,0.04328,92921.0,92920.0,0.00200007]
[1763499830467,0.04328,92921.0,92920.0,0.02425007]
[1763499831273,0.04428,92921.0,92920.0,0.04725007]
[1763499832366,0.04528,92921.0,92920.0,0.04725007]
[1763499833871,0.04528,92921.0,92920.0,0.00200007]
[1763499834059,0.04528,92921.0,92920.0,0.04725007]
[1763499838460,0.04528,92921.0,92920.0,0.15492557]
[1763499840063,0.04428,92921.0,92920.0,0.15492557]
[1763499840273,0.04328,92921.0,92920.0,0.15492557]
[1763499840573,0.04428,92921.0,92920.0,0.15492557]
[1763499841663,0.04428,92921.0,92920.0,0.04725007]
[1763499842470,0.04328,92921.0,92920.0,0.04725007]
[1763499842973,0.04325,92921.0,92920.0,0.04761007]
[1763499843476,0.04432,92916.0,92915.0,0.02892356]
[1763499843769,0.01439063,92920.0,92914.0,0.02892356]
[1763499843770,0.04432,92915.0,92914.0,0.02892356]
[1763499843970,0.04432,92915.0,92914.0,0.04561]
[1763499846871,0.04432,92920.0,92919.0,0.1076763]
[1763499847070,0.05871063,92920.0,92919.0,0.1532863]
[1763499848369,0.05871063,92920.0,92919.0,0.18227442]
[1763499848875,0.05971063,92920.0,92919.0,0.18227442]
[1763499849278,0.05971063,92920.0,92919.0,0.1532863]
[1763499849474,0.00193063,92920.0,92919.0,0.1532863]
[1763499849679,0.001,92920.0,92919.0,0.1532863]
[1763499849971,1.44e-06,92922.0,92921.0,0.1532843]
[1763499851277,1.44e-06,92922.0,92921.0,0.4133243]
[1763499851687,0.01346,92944.0,92943.0,0.04561]
[1763499851875,0.28246,92945.0,92944.0,0.04561]
[1763499852070,0.30436,92945.0,92944.0,0.04561]
[1763499853175,0.30536,92945.0,92944.0,0.04561]
[1763499853777,0.30636,92945.0,92944.0,0.04561]
[1763499854577,0.30536,92945.0,92944.0,0.04561]
[1763499854782,0.30636,92945.0,92944.0,0.04561]
[1763499855375,0.30536,92945.0,92944.0,0.02316]
[1763499855581,0.04432,92941.0,92940.0,0.04761007]
[1763499856480,0.30636,92945.0,92944.0,0.04561]
[1763499857881,0.30536,92945.0,92944.0,0.04561]
[1763499858082,0.30436,92945.0,92944.0,0.04561]
[1763499858687,0.30536,92945.0,92944.0,0.04561]
[1763499858888,0.30636,92945.0,92944.0,0.04561]
[1763499859200,0.002,92945.0,92944.0,0.05887]
[1763499860288,0.02442,92945.0,92944.0,0.04561]
[1763499860495,0.04632,92945.0,92944.0,0.04561]
[1763499861691,0.04632,92945.0,92944.0,0.0746295]
[1763499862192,0.04632,92945.0,92936.0,0.114076]
[1763499862193,0.04352,92933.0,92928.0,0.02897702]
[1763499862391,0.01371,92936.0,92917.0,0.03869267]
[1763499862392,0.04352,92918.0,92917.0,0.03869267]
[1763499862694,0.04352,92911.0,92910.0,0.00200007]
[1763499862898,0.04352,92911.0,92910.0,0.02476007]
[1763499863193,0.04352,92911.0,92903.0,0.3608]
[1763499863194,0.04352,92906.0,92905.0,0.058039]
[1763499863498,0.04352,92904.0,92903.0,0.3608]
[1763499864192,0.01371,92912.0,92900.0,0.04064882]
[1763499864193,0.04352,92901.0,92900.0,0.04064882]
[1763499864393,0.04445063,92900.0,92899.0,0.03864875]
[1763499864696,0.04445063,92900.0,92899.0,0.08414875]
[1763499864895,0.02250063,92900.0,92899.0,0.08414875]
[1763499865195,0.04445063,92900.0,92899.0,0.08414875]
[1763499865391,0.04345063,92900.0,92899.0,0.08414875]
[1763499865591,0.04345063,92900.0,92899.0,0.08514875]
[1763499866097,0.04345063,92900.0,92899.0,0.08614875]
[1763499867186,0.04345063,92900.0,92899.0,0.0475]
[1763499868085,0.04345063,92900.0,92899.0,0.02476]
[1763499868291,0.04345063,92900.0,92899.0,0.002]
[1763499868590,0.04345063,92900.0,92899.0,0.04621]
[1763499871093,0.04345063,92900.0,92899.0,0.002]
[1763499871695,0.04345063,92900.0,92899.0,0.02444]
[1763499871997,0.04345063,92900.0,92899.0,0.04621]
[1763499872396,0.02267,92906.0,92905.0,0.1519029]
[1763499872985,0.05744,92912.0,92911.0,0.1518959]
[1763499873188,0.04373,92912.0,92911.0,0.1518959]
[1763499873601,0.04373,92912.0,92911.0,0.04421]
[1763499873800,0.04373,92903.0,92902.0,0.3608]
[1763499875000,0.04273,92903.0,92902.0,0.3608]
[1763499875198,0.04173,92903.0,92902.0,0.3608]
[1763499875796,0.04173,92903.0,92902.0,0.3628]
[1763499876796,0.04173,92903.0,92902.0,0.40701]
[1763499878393,0.04373,92912.0,92911.0,0.1518943]
[1763499878594,0.00016144,92915.0,92914.0,0.1518924]
[1763499879894,0.04389144,92915.0,92914.0,0.04421]
[1763499880101,0.04389144,92915.0,92914.0,0.1518924]
[1763499880398,0.04389144,92915.0,92914.0,0.04421]
[1763499880602,0.04373,92911.0,92910.0,0.00219803]
[1763499880998,0.04273,92911.0,92910.0,0.00219803]
[1763499881801,0.04273,92911.0,92910.0,0.00319803]
[1763499882101,0.04273,92911.0,92910.0,0.00419803]
[1763499882694,0.02167,92911.0,92910.0,0.04840803]
[1763499882991,0.30377,92912.0,92911.0,0.04421]
[1763499883191,0.30377,92912.0,92911.0,0.1518959]
[1763499883393,0.04373,92911.0,92910.0,0.00419803]
[1763499883601,0.04373,92911.0,92910.0,0.002]
[1763499884196,0.04373,92911.0,92910.0,0.001]
[1763499884197,0.04273,92911.0,92910.0,0.001]
[1763499885598,0.04273,92897.0,92896.0,0.02260144]
[1763499886303,0.04173,92897.0,92896.0,0.04437144]
[1763499886897,0.04173,92897.0,92896.0,0.04537144]
[1763499888108,0.04173,92897.0,92896.0,0.08398326]
[1763499889102,0.04173,92897.0,92896.0,0.04537144]
[1763499897311,0.05451,92897.0,92896.0,0.04537144]
[1763499897900,0.41531,92897.0,92896.0,0.00116144]
[1763499898702,0.04551,92877.0,92876.0,0.05774]
[1763499898907,0.04551,92875.0,92869.0,0.01326]
[1763499899105,0.04551,92875.0,92864.0,0.48197]
[1763499899106,0.04551,92865.0,92864.0,0.41871]
[1763499899412,0.3608,92880.0,92855.0,0.37406]
[1763499899413,0.04551,92856.0,92855.0,0.41854]
[1763499900109,0.04551,92856.0,92855.0,0.03563]
[1763499900307,0.04551,92849.0,92848.0,0.05774]
[1763499900507,0.04551,92847.0,92846.0,0.00043079]
[1763499902617,0.04651,92847.0,92846.0,0.00043079]
[1763499903021,0.04551,92827.0,92826.0,0.1655235]
[1763499903215,0.04559878,92827.0,92826.0,0.1655235]
[1763499904310,0.02302878,92827.0,92826.0,0.1655235]
[1763499904511,8.878e-05,92827.0,92826.0,0.1655235]
[1763499905013,0.00016153,92836.0,92835.0,0.1655141]
[1763499905211,0.00016153,92836.0,92835.0,0.5263141]
[1763499905411,0.001,92847.0,92846.0,0.1522413]
[1763499905718,0.40631,92849.0,92848.0,0.04448]
[1763499906910,0.40931,92849.0,92848.0,0.1522392]
[1763499907713,0.40931,92849.0,92848.0,0.04448]
[1763499908922,0.38674,92849.0,92848.0,0.04448]
[1763499910820,0.3638,92849.0,92848.0,0.04448]
[1763499911013,0.38674,92849.0,92848.0,0.04448]
[1763499911214,0.40931,92849.0,92848.0,0.04448]
[1763499911812,0.38674,92849.0,92848.0,0.04448]
[1763499912011,0.02594,92849.0,92848.0,0.04448]
[1763499912315,0.04551,92845.0,92844.0,0.04448]
[1763499913324,0.04551,92845.0,92844.0,0.05774]
[1763499913515,0.04751,92845.0,92844.0,0.05774]
[1763499914220,0.002,92845.0,92844.0,0.1655038]
[1763499916226,0.26012,92856.0,92855.0,0.1522311]
[1763499916423,0.00016153,92858.0,92857.0,0.04448]
[1763499916923,0.3608,92898.0,92885.0,0.1521963]
[1763499917119,0.3608,92898.0,92897.0,0.1521824]
[1763499917325,0.02294,92907.0,92906.0,0.1521719]
[1763499917522,0.26016,92912.0,92911.0,0.1521661]
[1763499917723,0.26016,92912.0,92910.0,0.01545803]
[1763499917724,0.40631,92921.0,92920.0,0.05774]
[1763499917928,0.02294,92921.0,92920.0,0.05993803]
[1763499918328,0.04567143,92930.0,92929.0,0.04448]
[1763499918821,0.04751,92921.0,92920.0,0.02237]
[1763499919021,0.002,92921.0,92920.0,0.04667803]
[1763499919420,0.3608,92923.0,92920.0,0.04667803]
[1763499919625,0.3608,92923.0,92922.0,0.04448]
[1763499920215,0.38374,92923.0,92922.0,0.04448]
[1763499920824,0.40631,92923.0,92922.0,0.04448]
[1763499921129,0.38374,92923.0,92922.0,0.04448]
[1763499921316,0.40631,92923.0,92922.0,0.04448]
[1763499921919,0.40731,92923.0,92922.0,0.02237]
[1763499922125,0.04572,92921.0,92920.0,0.00219803]
[1763499922320,0.04572,92921.0,92920.0,0.02330803]
[1763499922720,0.04572,92912.0,92897.0,0.3608]
[1763499922923,0.04572,92912.0,92897.0,0.62092]
[1763499923124,0.04572,92912.0,92910.0,0.00219803]
[1763499923315,0.04572,92912.0,92911.0,0.02127143]
[1763499923826,0.04572,92912.0,92911.0,0.04321143]
[1763499924222,0.04572,92912.0,92911.0,0.02127143]
[1763499924422,0.04572,92912.0,92911.0,0.00016143]
[1763499924928,0.04672,92912.0,92911.0,0.00016143]
[1763499926523,0.04672,92912.0,92911.0,0.04321143]
[1763499927831,0.04672,92912.0,92911.0,0.00016143]
[1763499930030,0.04391,92901.0,92880.0,0.3608]
[1763499930220,0.02114,92891.0,92890.0,0.05828803]
[1763499930424,0.04391,92891.0,92890.0,0.05828803]
[1763499931026,0.04391,92891.0,92890.0,0.16599853]
[1763499931834,0.04391,92891.0,92890.0,0.16699853]
[1763499932935,0.04391,92891.0,92890.0,0.05928803]
[1763499933131,0.40471,92891.0,92890.0,0.001]
[1763499933525,0.04391,92882.0,92881.0,0.00016143]
[1763499933725,0.40471,92882.0,92881.0,0.00016143]
[1763499934434,0.40371,92882.0,92881.0,0.00016143]
[1763499934632,0.40371,92882.0,92881.0,0.02121143]
[1763499934825,0.40471,92882.0,92881.0,0.02121143]
[1763499935226,0.40571,92882.0,92881.0,0.02121143]
[1763499935422,0.00016143,92900.0,92881.0,0.76096143]
[1763499935637,0.05782,92920.0,92919.0,0.1076769]
[1763499935831,0.05782,92920.0,92919.0,0.4684769]
[1763499937531,0.05882,92920.0,92919.0,0.4684768]
[1763499937722,0.05982,92920.0,92919.0,0.3608]
[1763499938134,0.05882,92920.0,92919.0,0.3608]
[1763499939831,0.05982,92920.0,92919.0,0.3608]
[1763499940428,0.05882,92920.0,92919.0,0.3608]
[1763499944238,0.05782,92920.0,92919.0,0.3608]
[1763499944439,0.05882,92920.0,92919.0,0.3608]
[1763499944841,0.05882,92920.0,92910.0,0.00016143]
[1763499944842,0.04391,92911.0,92910.0,0.00016143]
[1763499945140,0.04391,92904.0,92903.0,0.3608]
[1763499955546,0.04391,92904.0,92903.0,0.31628441]
[1763499955856,0.04391,92896.0,92895.0,0.3608]
[1763499957440,0.04279,92895.0,92894.0,0.00016143]
[1763499960749,0.01391,92898.0,92897.0,0.01662]
[1763499960953,0.05768,92898.0,92897.0,0.01662]
[1763499961138,0.26004,92901.0,92900.0,0.01881803]
[1763499962354,0.28216,92901.0,92900.0,0.01881803]
[1763499963655,0.30381,92901.0,92900.0,0.01881803]
[1763499966050,0.26004,92901.0,92900.0,0.01881803]
[1763499966571,0.04393143,92905.0,92904.0,0.01662]
[1763499967256,0.04377,92901.0,92900.0,0.01881803]
[1763499967448,0.02228143,92905.0,92904.0,0.01662]
[1763499967648,0.04393143,92905.0,92904.0,0.01662]
[1763499968154,0.04393143,92905.0,92904.0,0.1243142]
[1763499968354,0.00016143,92905.0,92904.0,0.1243142]
[1763499968956,0.02228143,92905.0,92904.0,0.1243142]
[1763499969253,0.04393143,92905.0,92904.0,0.01662]
[1763499970360,0.04393143,92905.0,92903.0,0.3608]
[1763499970361,0.04377,92904.0,92903.0,0.3608]
[1763499972755,0.04377,92904.0,92900.0,0.00219803]
[1763499972756,0.04377,92901.0,92900.0,0.00219803]
[1763499972951,0.04377,92896.0,92895.0,0.38959352]
[1763499973553,0.04377,92896.0,92895.0,0.3608]
[1763499977255,0.04377,92895.0,92894.0,0.00016143]
[1763499977557,0.04377,92888.0,92887.0,0.38959352]
[1763499978358,0.04377,92888.0,92887.0,0.3608]
[1763499978865,0.04377,92888.0,92887.0,0.37774]
[1763499980462,0.26004,92895.0,92894.0,0.01694]
[1763499981664,0.26004,92895.0,92894.0,0.1246458]
[1763499982557,0.28216,92895.0,92894.0,0.1246458]
[1763499983363,0.28216,92895.0,92894.0,0.1536923]
[1763499983861,0.04447143,92905.0,92904.0,0.01694]
[1763499984266,0.00016143,92905.0,92904.0,0.1246342]
[1763499984964,0.00016143,92905.0,92904.0,0.1536837]
[1763499985864,0.04447143,92905.0,92904.0,0.01694]
[1763499986062,0.04431,92904.0,92903.0,0.3608]
[1763499986365,0.04431,92901.0,92900.0,0.01066803]
[1763499987052,0.04431,92901.0,92900.0,0.00219803]
[1763499987257,0.04431,92901.0,92900.0,0.03124863]
[1763499988261,0.02173143,92905.0,92904.0,0.01694]